fUST/lending_fUST_20250920
["ID","MTS","AMOUNT","RATE_DAILY","PERIOD"]
[386519367,1758337841338,-480.0,0.00028219,2]
[386519368,1758337841347,-995.58535438,0.00028234,2]
[386519369,1758337841356,-500.0,0.00028273,2]
[386519370,1758337841365,-977.0,0.00028275,2]
[386519371,1758337841375,-634.0,0.00028275,2]
[386519372,1758337841384,-2158.0,0.00028275,2]
[386519373,1758337841393,-164.83371352,0.00028329,30]
[386519374,1758337841402,-724.22,0.00028329,2]
[386519375,1758337841411,-581.0,0.00028334,7]
[386519376,1758337841420,-151.0,0.00028381,7]
[386519377,1758337841429,-172.00089582,0.00028384,2]
[386519378,1758337841438,-480.0,0.000284,2]
[386519379,1758337841448,-581.0,0.00028402,2]
[386519380,1758337841458,-707.09495426,0.00028471,2]
[386519381,1758337841468,-480.0,0.00028493,2]
[386519382,1758337841477,-566.99032567,0.00028493,2]
[386519383,1758337841487,-1000.0,0.00028535,5]
[386519384,1758337841497,-500.0,0.00028576,7]
[386519385,1758337841508,-724.22,0.00028603,2]
[386519386,1758337841517,-303.693143,0.00028612,30]
[386519387,1758337841527,-311.5600655,0.00028612,30]
[386519388,1758337841536,-581.0,0.00028663,2]
[386519389,1758337841545,-188.1,0.00028674,2]
[386519390,1758337841554,-260.0,0.00028723,2]
[386519391,1758337841563,-500.0,0.00028763,2]
[386519392,1758337841572,-480.0,0.00028767,2]
[386519393,1758337841582,-167.512234,0.00028768,20]
[386519394,1758337841591,-503.0414545,0.00028789,2]
[386519395,1758337841600,-172.00089582,0.0002882,2]
[386519396,1758337841609,-162.8762213,0.00028822,30]
[386519397,1758337841618,-724.22,0.00028877,2]
[386519398,1758337841627,-151.0,0.00028889,7]
[386519399,1758337841637,-804.0,0.00028955,2]
[386519400,1758337841646,-5000.0,0.00028959,30]
[386519401,1758337841655,-5000.0,0.00028959,30]
[386519402,1758337841664,-5000.0,0.00028959,30]
[386519403,1758337841674,-5000.0,0.00028959,30]
[386519404,1758337841684,-5000.0,0.00028959,30]
[386519405,1758337841693,-4639.77,0.00028959,30]
[386519406,1758337841702,-2443.37785031,0.00028985,2]
[386519407,1758337841711,-698.57533438,0.00028985,2]
[386519408,1758337841721,-698.57533436,0.00029023,2]
[386519409,1758337841730,-500.0,0.00029038,2]
[386519410,1758337841739,-480.0,0.00029041,2]
[386519411,1758337841749,-698.57533436,0.00029062,2]
[386519412,1758337841758,-581.0,0.0002907,2]
[386519413,1758337841768,-219.22,0.00029075,3]
[386519414,1758337841777,-657.7,0.00029075,3]
[386519415,1758337841787,-68359.13213419,0.00029075,2]
[386519416,1758337841800,-21796.82664041,0.00029075,2]
[386519417,1758337841809,-1506.31946157,0.00029075,2]
[386519418,1758337841819,-502.41411754,0.00029083,5]
[386519419,1758337841828,-151.0,0.00029085,7]
[386519420,1758337841838,-151.0,0.00029085,7]
[386519421,1758337841848,-151.0,0.00029085,7]
[386519422,1758337841858,-151.0,0.00029085,7]
[386519423,1758337841867,-155.233491,0.00029085,7]
[386519424,1758337841877,-154.736674,0.00029085,7]
[386519425,1758337841887,-271.323587,0.00029085,7]
[386519426,1758337841898,-151.0,0.00029085,7]
[386519427,1758337841908,-151.0,0.00029085,7]
[386519428,1758337841917,-156.66265,0.00029085,7]
[386519429,1758337841926,-152.041452,0.00029085,7]
[386519430,1758337841935,-151.0,0.00029085,7]
[386519431,1758337841945,-151.0,0.00029085,7]
[386519432,1758337841955,-152.841336,0.00029085,7]
[386519433,1758337841965,-216.375691,0.00029085,7]
[386519434,1758337841974,-151.0,0.00029085,7]
[386519435,1758337841984,-158.815676,0.00029085,7]
[386519436,1758337841993,-151.110493,0.00029085,7]
[386519437,1758337842003,-151.0,0.00029085,7]
[386519438,1758337842012,-151.0,0.00029085,7]
[386519439,1758337842021,-151.0,0.00029085,7]
[386519440,1758337842030,-151.0,0.00029085,7]
[386519441,1758337842039,-151.0,0.00029085,7]
[386519442,1758337842049,-151.0,0.00029085,7]
[386519443,1758337842058,-151.0,0.00029085,7]
[386519444,1758337842067,-151.0,0.00029085,7]
[386519445,1758337842076,-151.0,0.00029085,7]
[386519446,1758337842084,-151.0,0.00029085,7]
[386519447,1758337842097,-151.0,0.00029085,7]
[386519448,1758337842106,-151.0,0.00029085,7]
[386519449,1758337842115,-160.436801,0.00029085,7]
[386519450,1758337842124,-281.312537,0.00029085,7]
[386519451,1758337842133,-281.312537,0.00029085,7]
[386519452,1758337842142,-281.312537,0.00029085,7]
[386519453,1758337842152,-281.312537,0.00029085,7]
[386519454,1758337842162,-152.931305,0.00029085,7]
[386519455,1758337842171,-529.943754,0.00029085,7]
[386519456,1758337842180,-151.0,0.00029085,7]
[386519457,1758337842189,-529.943754,0.00029085,7]
[386519458,1758337842198,-529.943754,0.00029085,7]
[386519459,1758337842208,-529.943754,0.00029085,7]
[386519460,1758337842217,-151.0,0.00029085,7]
[386519461,1758337842226,-176.499852,0.00029085,7]
[386519462,1758337842235,-164.112959,0.00029085,7]
[386519463,1758337842244,-164.112959,0.00029085,7]
[386519464,1758337842253,-164.112959,0.00029085,7]
[386519465,1758337842262,-164.112959,0.00029085,7]
[386519466,1758337842272,-151.0,0.00029085,7]
[386519467,1758337842281,-893.430045,0.00029085,7]
[386519468,1758337842294,-893.430045,0.00029085,7]
[386519469,1758337842302,-153.16918,0.00029085,7]
[386519470,1758337842311,-893.430045,0.00029085,7]
[386519471,1758337842321,-893.430045,0.00029085,7]
[386519472,1758337842331,-152.044349,0.00029085,7]
[386519473,1758337842340,-151.0,0.00029085,7]
[386519474,1758337842349,-151.0,0.00029085,7]
[386519475,1758337842358,-151.0,0.00029085,7]
[386519476,1758337842369,-209.518447,0.00029085,7]
[386519477,1758337842379,-151.0,0.00029085,7]
[386519478,1758337842388,-151.0,0.00029085,7]
[386519479,1758337842398,-151.0,0.00029085,7]
[386519480,1758337842407,-151.0,0.00029085,7]
[386519481,1758337842416,-151.0,0.00029085,7]
[386519482,1758337842425,-137854.16803025,0.00029085,2]
[386519488,1758337846193,-171.03195035,0.00027736,3]
[386519489,1758337846203,-410.0,0.0002853,2]
[386519490,1758337846213,-461.85190565,0.00029085,2]
[386519492,1758337964079,150.0,0.00020443,2]
[386519495,1758338031060,150.0,0.00020448,2]
[386519496,1758338097022,150.0,0.00020429,2]
[386519497,1758338155234,2098.75248,0.00029355,60]
[386519498,1758338227104,150.0,0.00020445,2]
[386519499,1758338293611,150.0,0.00020444,2]
[386519501,1758338684142,328.45,0.00027397,120]
[386519506,1758338832107,-210.09711427,0.00026075,2]
[386519507,1758338832133,-201.37034315,0.00026384,2]
[386519508,1758338847094,-189.59224177,0.00026384,2]
[386519518,1758338950117,-156.8,0.00021,5]
[386519559,1758339032319,-172.00089582,0.000249,2]
[386519562,1758339032328,-300.0,0.00024999,2]
[386519565,1758339032338,-680.92306719,0.00025,5]
[386519568,1758339032350,-500.0,0.00025,5]
[386519675,1758339038338,-500.0,0.00024999,2]
[386519676,1758339038350,-500.0,0.00024999,2]
[386519677,1758339038360,-637.74832672,0.00024999,2]
[386519678,1758339038372,-208.16227191,0.00024999,2]
[386519679,1758339038383,-500.0,0.00024999,2]
[386519680,1758339038394,-500.0,0.00024999,2]
[386519681,1758339038405,-500.0,0.00024999,2]
[386519682,1758339038416,-500.0,0.00024999,2]
[386519683,1758339038427,-378.2152781,0.00024999,2]
[386519684,1758339038439,-500.0,0.00024999,2]
[386519685,1758339038450,-500.0,0.00024999,2]
[386519686,1758339038460,-639.64970615,0.00024999,2]
[386519687,1758339038473,-1313.21006108,0.00025,5]
[386519688,1758339038485,-40100.25628317,0.00025,3]
[386519689,1758339038496,-500.0,0.00025,2]
[386519690,1758339038506,-5511.57333563,0.00025,2]
[386519691,1758339038516,-531.84256808,0.00025,3]
[386519692,1758339038526,-848.27550084,0.00025,3]
[386519693,1758339038535,-531.84256808,0.00025,2]
[386519694,1758339038546,-500.0,0.00026384,2]
[386519695,1758339038557,-160.0,0.00026401,2]
[386519696,1758339038568,-433.74966117,0.00026482,2]
[386519697,1758339038579,-209.00621519,0.00026656,2]
[386519698,1758339038591,-510.90172764,0.00026657,2]
[386519699,1758339038602,-365.77221023,0.00026657,2]
[386519700,1758339038613,-150.40774745,0.00026657,2]
[386519701,1758339038623,-500.0,0.00026657,2]
[386519702,1758339038633,-501.00349358,0.00026657,2]
[386519703,1758339038643,-500.0,0.00026657,2]
[386519704,1758339038653,-500.0,0.00026657,2]
[386519705,1758339038663,-506.39719463,0.00026657,2]
[386519706,1758339038674,-500.0,0.00026657,2]
[386519707,1758339038684,-500.0,0.00026657,2]
[386519708,1758339038695,-500.0,0.00026657,2]
[386519709,1758339038705,-240.52117656,0.00026763,2]
[386519710,1758339038714,-160.0,0.00026789,2]
[386519711,1758339038724,-160.0,0.00026854,2]
[386519712,1758339038734,-160.0,0.00026854,2]
[386519713,1758339038745,-848.27550084,0.00026854,2]
[386519714,1758339038755,-233.47853244,0.00026854,2]
[386519715,1758339038765,-218.03426629,0.00026855,2]
[386519716,1758339038775,-480.0,0.0002699,2]
[386519717,1758339038786,-480.0,0.00026999,2]
[386519718,1758339038797,-480.0,0.00026999,2]
[386519719,1758339038807,-39336.68422311,0.00027,2]
[386519720,1758339038818,-192.39,0.00027264,2]
[386519721,1758339038828,-480.0,0.00027273,2]
[386519722,1758339038839,-197.73933243,0.0002739,2]
[386519723,1758339038850,-150.0,0.0002739,2]
[386519724,1758339038860,-484.80157196,0.00027473,2]
[386519725,1758339038872,-833.33,0.00027473,2]
[386519726,1758339038883,-480.0,0.00027474,2]
[386519727,1758339038893,-45349.87932473,0.000275,2]
[386519728,1758339038903,-302.15500742,0.0002753,2]
[386519729,1758339038914,-500.0,0.00027533,2]
[386519730,1758339038924,-191.32674433,0.00027533,5]
[386519731,1758339038935,-151.0,0.00027533,5]
[386519732,1758339038945,-151.0,0.00027533,5]
[386519733,1758339038955,-508.16415187,0.00027533,5]
[386519734,1758339038966,-507.36583507,0.00027533,5]
[386519735,1758339038977,-505.32740519,0.00027533,2]
[386519736,1758339038987,-334.0,0.00027534,60]
[386519737,1758339038998,-500.0,0.00027543,2]
[386519738,1758339039009,-500.0,0.00027543,2]
[386519739,1758339039020,-151.0,0.00027543,2]
[386519740,1758339039031,-151.0,0.00027543,2]
[386519741,1758339039041,-500.0,0.00027543,2]
[386519742,1758339039052,-246.66997102,0.00027543,2]
[386519743,1758339039062,-429.0,0.00027543,2]
[386519744,1758339039074,-480.0,0.00027547,2]
[386519745,1758339039085,-160.0,0.0002756,2]
[386519746,1758339039095,-480.0,0.0002761,2]
[386519747,1758339039106,-480.0,0.0002761,2]
[386519748,1758339039116,-500.0,0.00027644,2]
[386519749,1758339039127,-662.24,0.00027653,2]
[386519750,1758339039138,-480.0,0.00027653,2]
[386519751,1758339039148,-833.33,0.00027747,2]
[386519752,1758339039159,-480.0,0.00027748,2]
[386519753,1758339039170,-1000.0,0.00027761,2]
[386519754,1758339039180,-1000.0,0.00027761,2]
[386519755,1758339039323,-1000.0,0.00027761,2]
[386519756,1758339039338,-1000.0,0.00027761,2]
[386519757,1758339039348,-1000.0,0.00027761,2]
[386519758,1758339039358,-1000.0,0.00027761,2]
[386519759,1758339039367,-1000.0,0.00027761,2]
[386519760,1758339039376,-799.61045593,0.00027761,2]
[386519761,1758339039386,-500.0,0.00027801,2]
[386519762,1758339039395,-500.0,0.00027807,2]
[386519763,1758339039404,-151.0,0.00027807,5]
[386519764,1758339039414,-151.0,0.00027807,5]
[386519765,1758339039424,-257.48433712,0.00027817,5]
[386519766,1758339039433,-604.17842042,0.00027817,2]
[386519767,1758339039443,-151.0,0.00027817,2]
[386519768,1758339039452,-151.0,0.00027817,2]
[386519769,1758339039461,-500.0,0.00027817,2]
[386519770,1758339039471,-429.0,0.00027817,2]
[386519771,1758339039481,-480.0,0.00027821,2]
[386519772,1758339039490,-500.0,0.00027839,2]
[386519773,1758339039500,-480.0,0.00027884,2]
[386519774,1758339039510,-480.0,0.00027884,2]
[386519775,1758339039520,-500.0,0.00027924,5]
[386519776,1758339039530,-506.99300833,0.00027924,5]
[386519777,1758339039539,-662.24,0.00027927,2]
[386519778,1758339039549,-151.30740363,0.00027927,2]
[386519779,1758339039559,-502.73966054,0.00027944,5]
[386519780,1758339039568,-505.58049554,0.0002795,5]
[386519781,1758339039577,-199.84946244,0.0002795,5]
[386519782,1758339039587,-833.33,0.00028021,2]
[386519784,1758339039597,-221.37004794,0.00028022,2]
[386519786,1758339039607,-574.35,0.00028049,2]
[386519787,1758339039616,-480.0,0.00028049,2]
[386519788,1758339039625,-251.1021764,0.00028049,2]
[386519789,1758339039635,-205.4747174,0.00028049,2]
[386519790,1758339039645,-492.17586035,0.00028049,2]
[386519791,1758339039654,-480.0,0.00028049,2]
[386519792,1758339039664,-488.21816104,0.00028049,2]
[386519793,1758339039674,-480.0,0.00028049,2]
[386519794,1758339039683,-480.0,0.00028049,2]
[386519795,1758339039692,-377.18824703,0.00028049,2]
[386519797,1758339039702,-480.0,0.00028049,2]
[386519799,1758339039712,-389.97,0.00028049,2]
[386519800,1758339039721,-482.16324779,0.00028049,2]
[386519801,1758339039730,-500.0,0.00028081,2]
[386519802,1758339039740,-153.59302797,0.00028091,2]
[386519804,1758339039749,-151.0,0.00028091,2]
[386519805,1758339039758,-460.89371893,0.00028091,2]
[386519806,1758339039768,-429.0,0.00028091,2]
[386519807,1758339039777,-260.0,0.00028108,2]
[386519809,1758339039786,-480.0,0.00028158,2]
[386519810,1758339039796,-480.0,0.00028158,2]
[386519811,1758339039806,-662.24,0.00028201,2]
[386519812,1758339039815,-608.29918753,0.00028222,2]
[386519813,1758339039825,-168.0,0.00028244,2]
[386519814,1758339039835,-500.0,0.00028276,2]
[386519815,1758339039844,-833.33,0.00028295,2]
[386519817,1758339039855,-197.46,0.00028323,2]
[386519819,1758339039864,-323.77,0.00028323,2]
[386519820,1758339039875,-174.41,0.00028323,2]
[386519822,1758339039885,-480.0,0.00028323,2]
[386519825,1758339039895,-500.0,0.00028355,2]
[386519827,1758339039905,-217.09710637,0.00028365,2]
[386519828,1758339039914,-429.0,0.00028365,2]
[386519830,1758339039924,-500.0,0.00028378,2]
[386519832,1758339039933,-480.0,0.00028432,2]
[386519834,1758339039942,-480.0,0.00028432,2]
[386519836,1758339039952,-824.9441133,0.00028471,2]
[386519838,1758339039961,-297.46853025,0.00028474,2]
[386519840,1758339039971,-490.0010079,0.00028474,2]
[386519842,1758339039980,-487.82382391,0.00028474,2]
[386519844,1758339039990,-500.82303565,0.00028474,2]
[386519846,1758339039999,-488.03606376,0.00028474,2]
[386519847,1758339040009,-491.8626027,0.00028474,2]
[386519848,1758339040019,-489.99276791,0.00028474,2]
[386519849,1758339040031,-488.53872383,0.00028474,2]
[386519850,1758339040041,-480.0,0.00028474,2]
[386519851,1758339040050,-500.0,0.00028474,2]
[386519852,1758339040060,-482.41795617,0.00028474,2]
[386519853,1758339040070,-494.97038218,0.00028474,2]
[386519854,1758339040080,-480.0,0.00028474,2]
[386519855,1758339040089,-480.0,0.00028474,2]
[386519856,1758339040100,-480.0,0.00028474,2]
[386519857,1758339040110,-480.0,0.00028474,2]
[386519858,1758339040120,-481.24686048,0.00028474,2]
[386519859,1758339040129,-482.8,0.00028474,2]
[386519860,1758339040139,-480.0,0.00028474,2]
[386519861,1758339040149,-151.0,0.00028475,2]
[386519862,1758339040158,-151.0,0.00028475,2]
[386519864,1758339040167,-662.24,0.00028475,2]
[386519866,1758339040177,-500.0,0.00028502,2]
[386519867,1758339040187,-500.0,0.00028537,2]
[386519868,1758339040197,-833.33,0.00028569,2]
[386519869,1758339040206,-500.0,0.00028576,7]
[386519870,1758339040216,-480.0,0.00028597,2]
[386519871,1758339040226,-500.0,0.00028629,2]
[386519872,1758339040236,-429.0,0.00028639,2]
[386519873,1758339040248,-360.0,0.00028656,2]
[386519874,1758339040257,-151.0,0.00028661,7]
[386519875,1758339040267,-151.0,0.00028661,7]
[386519876,1758339040276,-151.0,0.00028661,7]
[386519877,1758339040286,-151.0,0.00028661,7]
[386519878,1758339040295,-151.0,0.00028661,7]
[386519879,1758339040305,-151.0,0.00028661,7]
[386519880,1758339040314,-151.0,0.00028661,7]
[386519881,1758339040323,-293.966456,0.00028661,7]
[386519882,1758339040333,-151.0,0.00028661,7]
[386519883,1758339040342,-151.0,0.00028661,7]
[386519884,1758339040351,-151.0,0.00028661,7]
[386519885,1758339040361,-156.934374,0.00028661,7]
[386519886,1758339040370,-156.934374,0.00028661,7]
[386519887,1758339040379,-156.934374,0.00028661,7]
[386519888,1758339040390,-151.60767073,0.00028661,2]
[386519889,1758339040401,-156.934374,0.00028661,7]
[386519890,1758339040410,-151.988656,0.00028661,7]
[386519891,1758339040419,-100021.383985,0.00028661,2]
[386519892,1758339040428,-1525.14845484,0.00028661,2]
[386519893,1758339040438,-501.32474821,0.00028673,5]
[386519894,1758339040447,-576.25645242,0.00028673,5]
[386519895,1758339040457,-501.65539122,0.00028673,5]
[386519896,1758339040466,-500.0,0.00028673,5]
[386519897,1758339040475,-158.72264056,0.00028673,5]
[386519898,1758339040485,-381.51777227,0.00028673,2]
[386519899,1758339040494,-2828.73386877,0.00028676,2]
[386519900,1758339040503,-480.0,0.00028706,2]
[386519901,1758339040513,-500.0,0.00028748,2]
[386519902,1758339040522,-480.0,0.00028748,2]
[386519903,1758339040531,-662.24,0.00028749,2]
[386519904,1758339040542,-500.0,0.00028772,2]
[386519905,1758339040552,-160.0,0.00028783,2]
[386519906,1758339040561,-5258.57109753,0.00028821,22]
[386519907,1758339040570,-5000.0,0.00028821,22]
[386519908,1758339040579,-5000.0,0.00028821,20]
[386519909,1758339040588,-5000.0,0.00028821,17]
[386519910,1758339040598,-5000.0,0.00028821,20]
[386519911,1758339040607,-833.33,0.00028843,2]
[386519912,1758339040617,-480.0,0.00028871,2]
[386519913,1758339040627,-2091.5215518,0.00028875,2]
[386519914,1758339040636,-521.78525105,0.00028875,2]
[386519915,1758339040646,-500.0,0.00028903,2]
[386519916,1758339040655,-429.0,0.00028913,2]
[386519917,1758339040664,-521.78525105,0.00028941,2]
[386519918,1758339040673,-386.09,0.00028965,3]
[386519919,1758339040683,-193.05,0.00028965,3]
[386519920,1758339040692,-579.17,0.00028965,3]
[386519921,1758339040701,-151.0,0.00028965,7]
[386519922,1758339040711,-151.0,0.00028965,7]
[386519923,1758339040720,-151.0,0.00028965,7]
[386519924,1758339040729,-151.0,0.00028965,7]
[386519925,1758339040739,-151.0,0.00028965,7]
[386519926,1758339040748,-151.0,0.00028965,7]
[386519927,1758339040758,-151.0,0.00028965,7]
[386519928,1758339040767,-151.0,0.00028965,7]
[386519929,1758339040777,-275.533875,0.00028965,7]
[386519930,1758339040787,-156.934374,0.00028965,7]
[386519931,1758339040796,-156.934374,0.00028965,7]
[386519932,1758339040806,-156.934374,0.00028965,7]
[386519933,1758339040815,-156.934374,0.00028965,7]
[386519934,1758339040825,-716.97419145,0.00028965,2]
[386519935,1758339040834,-399181.70763842,0.00028965,2]
[386519936,1758339040859,-310.8442266,0.00028049,2]
[386519937,1758339040870,-903.82830258,0.00028965,2]
[386519938,1758339040879,-16776.6330032,0.00028965,2]
[386519939,1758339040888,-9150.89072904,0.00028975,2]
[386519940,1758339040898,-480.0,0.0002898,2]
[386519941,1758339040907,-151.0,0.00028985,7]
[386519942,1758339040916,-151.0,0.00028985,7]
[386519943,1758339040925,-151.0,0.00028985,7]
[386519944,1758339040934,-153.206649,0.00028985,7]
[386519945,1758339040943,-201.375617,0.00028985,7]
[386519946,1758339040952,-151.0,0.00028985,7]
[386519947,1758339040961,-151.0,0.00028985,7]
[386519948,1758339040971,-151.0,0.00028985,7]
[386519949,1758339040980,-151.0,0.00028985,7]
[386519950,1758339040990,-151.0,0.00028985,7]
[386519951,1758339041000,-237.673731,0.00028985,7]
[386519952,1758339041009,-151.0,0.00028985,7]
[386519953,1758339041019,-151.0,0.00028985,7]
[386519954,1758339041028,-151.0,0.00028985,7]
[386519955,1758339041038,-151.0,0.00028985,7]
[386519956,1758339041048,-151.0,0.00028985,7]
[386519957,1758339041058,-151.727126,0.00028985,7]
[386519958,1758339041067,-152.315913,0.00028985,7]
[386519959,1758339041076,-151.0,0.00028985,7]
[386519960,1758339041086,-151.0,0.00028985,7]
[386519961,1758339041095,-151.0,0.00028985,7]
[386519962,1758339041104,-185.847776,0.00028985,7]
[386519963,1758339041114,-151.0,0.00028985,7]
[386519964,1758339041123,-151.0,0.00028985,7]
[386519965,1758339041132,-151.0,0.00028985,7]
[386519966,1758339041142,-151.0,0.00028985,7]
[386519967,1758339041151,-156.377144,0.00028985,7]
[386519968,1758339041160,-151.0,0.00028985,7]
[386519969,1758339041169,-151.0,0.00028985,7]
[386519970,1758339041179,-151.0,0.00028985,7]
[386519971,1758339041188,-151.0,0.00028985,7]
[386519972,1758339041197,-151.0,0.00028985,7]
[386519973,1758339041206,-151.0,0.00028985,7]
[386519974,1758339041216,-151.0,0.00028985,7]
[386519975,1758339041225,-151.0,0.00028985,7]
[386519976,1758339041234,-151.0,0.00028985,7]
[386519977,1758339041244,-153.011195,0.00028985,7]
[386519978,1758339041253,-151.0,0.00028985,7]
[386519979,1758339041263,-151.0,0.00028985,7]
[386519980,1758339041272,-166.257064,0.00028985,7]
[386519981,1758339041282,-166.257064,0.00028985,7]
[386519982,1758339041291,-166.257064,0.00028985,7]
[386519983,1758339041300,-166.257064,0.00028985,7]
[386519984,1758339041310,-151.0,0.00028985,7]
[386519985,1758339041319,-745.346174,0.00028985,7]
[386519986,1758339041328,-745.346174,0.00028985,7]
[386519987,1758339041337,-151.0,0.00028985,7]
[386519988,1758339041346,-745.346174,0.00028985,7]
[386519989,1758339041355,-745.346174,0.00028985,7]
[386519990,1758339041364,-302.938747,0.00028985,7]
[386519991,1758339041373,-302.938747,0.00028985,7]
[386519992,1758339041383,-302.938747,0.00028985,7]
[386519993,1758339041392,-302.938747,0.00028985,7]
[386519994,1758339041401,-151.0,0.00028985,7]
[386519995,1758339041411,-151.0,0.00028985,7]
[386519996,1758339041420,-151.0,0.00028985,7]
[386519997,1758339041429,-151.0,0.00028985,7]
[386519998,1758339041438,-151.0,0.00028985,7]
[386519999,1758339041447,-531.84256808,0.00028985,7]
[386520000,1758339041456,-714.744036,0.00028985,7]
[386520001,1758339041465,-714.744036,0.00028985,7]
[386520002,1758339041475,-714.744036,0.00028985,7]
[386520003,1758339041484,-714.744036,0.00028985,7]
[386520004,1758339041493,-152.261574,0.00028985,7]
[386520005,1758339041502,-151.0,0.00028985,7]
[386520006,1758339041512,-151.0,0.00028985,7]
[386520007,1758339041521,-151.0,0.00028985,7]
[386520008,1758339041530,-151.0,0.00028985,7]
[386520009,1758339041539,-151.0,0.00028985,7]
[386520010,1758339041548,-151.0,0.00028985,7]
[386520011,1758339041558,-151.0,0.00028985,7]
[386520012,1758339041567,-156.934374,0.00028985,7]
[386520013,1758339041576,-156.934374,0.00028985,7]
[386520014,1758339041586,-156.934374,0.00028985,7]
[386520015,1758339041595,-156.934374,0.00028985,7]
[386520016,1758339041604,-283526.13670546,0.00028985,2]
[386520017,1758339041613,-878.30562794,0.00029,2]
[386520018,1758339041623,-3035.91393067,0.00029,60]
[386520019,1758339041632,-209.0,0.00029,2]
[386520020,1758339041641,-521.78525105,0.00029007,2]
[386520021,1758339041651,-500.0,0.00029022,2]
[386520022,1758339041661,-480.0,0.00029022,2]
[386520023,1758339041670,-662.24,0.00029023,2]
[386520024,1758339041679,-2091.5215518,0.00029069,2]
[386520025,1758339041689,-521.78525105,0.00029072,2]
[386520026,1758339041698,-1030.2984727,0.00029082,2]
[386520027,1758339041708,-1784.2808191,0.00029082,2]
[386520028,1758339041717,-156.201,0.00029084,2]
[386520029,1758339041727,-166.0,0.00029085,7]
[386520030,1758339041736,-151.0,0.00029095,7]
[386520031,1758339041746,-151.0,0.00029095,7]
[386520032,1758339041755,-151.0,0.00029095,7]
[386520033,1758339041764,-151.0,0.00029095,7]
[386520034,1758339041774,-833.33,0.00029117,2]
[386520035,1758339041783,-1525.14845484,0.00029128,2]
[386520036,1758339041792,-521.78525105,0.00029138,2]
[386520037,1758339041802,-977.0,0.00029138,2]
[386520038,1758339041811,-2158.0,0.00029138,2]
[386520039,1758339041821,-634.0,0.00029138,2]
[386520040,1758339041830,-410.0,0.00029138,2]
[386520041,1758339041839,-416.416,0.00029138,2]
[386520042,1758339041849,-581.0,0.00029149,2]
[386520043,1758339041858,-210.0,0.0002916,23]
[386520044,1758339041867,-500.0,0.00029177,2]
[386520045,1758339041877,-803.0,0.00029186,7]
[386520046,1758339041886,-429.0,0.00029187,2]
[386520047,1758339041895,-151.0,0.000292,13]
[386520048,1758339041906,-151.0,0.000292,13]
[386520049,1758339041915,-460.0,0.00029204,2]
[386520050,1758339041924,-1525.14845484,0.00029218,2]
[386520051,1758339041933,-240.77258757,0.00029221,5]
[386520052,1758339041943,-225.18232297,0.00029222,2]
[386520053,1758339041952,-161.37867539,0.00029237,10]
[386520054,1758339041962,-68825.90996882,0.00029238,7]
[386520066,1758339046207,-500.0,0.00027543,2]
[386520067,1758339046217,-500.0,0.00027817,2]
[386520068,1758339046226,-500.0,0.00028091,2]
[386520069,1758339046237,-500.0,0.00028365,2]
[386520070,1758339046246,-3905.69,0.000285,7]
[386520071,1758339046347,-500.0,0.00028639,2]
[386520072,1758339046357,-151.0,0.00028661,7]
[386520073,1758339046366,-151.0,0.00028661,7]
[386520074,1758339046376,-151.0,0.00028965,7]